[Event "XVI Open Internacional Villa de Ibi"]
[Site "Ibi, Spain"]
[Date "2018.09.09"]
[Round "8.5"]
[White "Garcia, Jhoel"]
[Black "Campos Gambuti, Luis Maria"]
[Result "0-1"]
[TimeControl "15' + 2'' por jugada"]
[WhiteElo "2250"]
[BlackElo "2382"]

1. c4 {[%clk 00:14:55]} {[%emt 00:00:11]} c6 {[%clk 00:15:03]} 2. Nf3 {[%clk
00:14:52]} {[%emt 00:00:42]} d5 {[%clk 00:15:04]} 3. d4 {[%clk 00:14:53]} Nf6
{[%clk 00:15:01]} 4. Nc3 {[%clk 00:14:51]} a6 {[%clk 00:14:48]} {[%emt
00:00:11]} 5. b3 {[%clk 00:14:48]} Bf5 {[%clk 00:14:19]} {[%emt 00:00:20]} 6.
e3 {[%clk 00:14:37]} {[%emt 00:00:06]} e6 {[%clk 00:14:14]} {[%emt 00:00:11]} 7.
Bb2 {[%clk 00:14:32]} {[%emt 00:00:07]} Ne4 {[%clk 00:14:04]} {[%emt 00:00:18]}
8. Nxe4 {[%clk 00:14:09]} {[%emt 00:00:15]} Bxe4 {[%clk 00:14:04]} {[%emt
00:00:11]} 9. a3 {[%clk 00:13:44]} {[%emt 00:00:22]} Nd7 {[%clk 00:11:56]}
{[%emt 00:02:09]} 10. Bd3 {[%clk 00:13:09]} {[%emt 00:00:39]} f5 {[%clk
00:11:38]} {[%emt 00:00:16]} 11. O-O {[%clk 00:12:49]} {[%emt 00:00:21]} Bd6
{[%clk 00:11:37]} {[%emt 00:00:18]} 12. Ne5 {[%clk 00:11:59]} {[%emt 00:00:40]}
Bxe5 {[%clk 00:09:51]} {[%emt 00:01:51]} 13. dxe5 {[%clk 00:11:58]} Bxd3 {[%clk
00:09:42]} {[%emt 00:00:12]} 14. Qxd3 {[%clk 00:11:58]} {[%emt 00:00:04]} Nc5
{[%clk 00:09:42]} 15. Qc2 {[%clk 00:11:51]} {[%emt 00:00:29]} dxc4 {[%clk
00:09:36]} {[%emt 00:00:03]} 16. Rad1 {[%clk 00:10:55]} {[%emt 00:00:40]} Qb6
{[%clk 00:08:29]} {[%emt 00:01:08]} 17. b4 {[%clk 00:10:37]} {[%emt 00:00:38]}
Nd7 {[%clk 00:08:23]} 18. Qxc4 {[%clk 00:10:37]} Nf8 {[%clk 00:08:10]} {[%emt
00:00:08]} 19. Rd6 {[%clk 00:09:58]} {[%emt 00:00:41]} Kf7 {[%clk 00:07:49]}
{[%emt 00:00:25]} 20. Rfd1 {[%clk 00:09:17]} {[%emt 00:00:43]} Re8 {[%clk
00:07:49]} {[%emt 00:00:04]} 21. Qh4 {[%clk 00:08:53]} {[%emt 00:00:27]} Re7
{[%clk 00:06:59]} {[%emt 00:00:46]} 22. Bd4 {[%clk 00:06:51]} {[%emt 00:02:08]}
Qc7 {[%clk 00:06:23]} {[%emt 00:00:38]} 23. f4 {[%clk 00:06:20]} {[%emt
00:00:31]} Ng6 {[%clk 00:05:37]} {[%emt 00:00:49]} 24. Qf2 {[%clk 00:06:20]}
{[%emt 00:00:03]} Rd7 {[%clk 00:05:27]} {[%emt 00:00:12]} 25. Bc5 {[%clk
00:05:23]} {[%emt 00:00:56]} Rhd8 {[%clk 00:05:23]} {[%emt 00:00:11]} 26. g4
{[%clk 00:02:52]} {[%emt 00:02:30]} Rxd6 {[%clk 00:04:53]} {[%emt 00:00:30]} 27.
exd6 {[%clk 00:02:45]} {[%emt 00:00:13]} Qd7 {[%clk 00:04:54]} {[%emt
00:00:08]} 28. e4 {[%clk 00:01:42]} {[%emt 00:00:54]} fxe4 {[%clk 00:04:47]}
{[%emt 00:00:11]} 29. Qe3 {[%clk 00:00:58]} {[%emt 00:00:47]} Kg8 {[%clk
00:04:46]} {[%emt 00:00:04]} 30. Qxe4 {[%clk 00:00:49]} {[%emt 00:00:06]} Rf8
{[%clk 00:04:47]} {[%emt 00:00:12]} 31. Rf1 {[%clk 00:00:44]} Rf7 {[%clk
00:04:46]} {[%emt 00:00:03]} 32. a4 {[%clk 00:00:04]} {[%emt 00:00:41]} b6
{[%clk 00:04:39]} {[%emt 00:00:07]} 33. Bxb6 {[%clk 00:00:05]} {[%emt
00:00:36]} Qxd6 {[%clk 00:04:40]} 34. Bc5 {[%clk 00:00:07]} Qd5 {[%clk
00:03:36]} {[%emt 00:00:32]} 35. Qxd5 {[%clk 00:00:07]} {[%emt 00:00:33]} exd5
{[%clk 00:03:37]} 36. Bd6 {[%clk 00:00:06]} Rd7 {[%clk 00:03:08]} {[%emt
00:00:06]} 37. Bc5 {[%clk 00:00:07]} Kf7 {[%clk 00:03:03]} {[%emt 00:00:05]} 38.
f5 {[%clk 00:00:08]} {[%emt 00:00:34]} Ne5 {[%clk 00:03:04]} 39. h3 {[%clk
00:00:10]} Nd3 {[%clk 00:03:02]} 40. Rf3 {[%clk 00:00:05]} {[%emt 00:00:03]}
Nxc5 {[%clk 00:03:02]} 41. bxc5 {[%clk 00:00:07]} Rb7 {[%clk 00:03:03]} 42. Re3
{[%clk 00:00:05]} Rb1+ {[%clk 00:03:04]} 43. Kg2 {[%clk 00:00:07]} Rc1 {[%clk
00:03:05]} 44. Rb3 {[%clk 00:00:07]} {[%emt 00:00:03]} Rxc5 {[%clk 00:03:05]}
45. Rb6 {[%clk 00:00:07]} a5 {[%clk 00:03:06]} 46. Kf3 {[%clk 00:00:08]} Kf6
{[%clk 00:03:06]} 47. Rb8 {[%clk 00:00:08]} Rc3+ {[%clk 00:03:01]} {[%emt
00:00:03]} 48. Kf4 {[%clk 00:00:09]} {[%emt 00:00:04]} Rc4+ {[%clk 00:03:02]}
49. Kg3 {[%clk 00:00:11]} h6 {[%clk 00:02:57]} {[%emt 00:00:09]} 50. Rf8+
{[%clk 00:00:10]} Ke7 {[%clk 00:02:56]} {[%emt 00:00:06]} 51. Rg8 {[%clk
00:00:11]} {[%emt 00:00:08]} Kf7 {[%clk 00:02:57]} 52. Rc8 {[%clk 00:00:12]}
Kf6 {[%clk 00:02:46]} {[%emt 00:00:04]} 53. h4 {[%clk 00:00:13]} {[%emt
00:00:08]} h5 {[%clk 00:02:45]} 54. Rf8+ {[%clk 00:00:13]} Ke7 {[%clk
00:02:47]} {[%emt 00:00:09]} 55. Rc8 {[%clk 00:00:14]} Rxg4+ {[%clk 00:02:47]}
56. Kf3 {[%clk 00:00:15]} Rc4 {[%clk 00:02:48]} 57. Rh8 {[%clk 00:00:12]} Rxh4
{[%clk 00:02:48]} {[%emt 00:00:04]} 58. Ra8 {[%clk 00:00:14]} Rxa4 {[%clk
00:02:47]} {[%emt 00:00:15]} 0-1

[Event "XVI Open Internacional Villa de Ibi"]
[Site "Ibi, Spain"]
[Date "2018.09.09"]
[Round "8.6"]
[White "Ibanez Aullana, Ramon"]
[Black "Diaz Velandia, Jose Manuel"]
[Result "0-1"]
[TimeControl "15' + 2'' por jugada"]
[WhiteElo "2301"]
[BlackElo "2368"]

1. e4 {[%clk 00:15:01]} c6 {[%clk 00:15:02]} 2. d4 {[%clk 00:14:57]} {[%emt
00:00:05]} d5 {[%clk 00:15:03]} 3. e5 {[%clk 00:14:44]} c5 {[%clk 00:15:03]} 4.
dxc5 {[%clk 00:14:32]} {[%emt 00:00:11]} Nc6 {[%clk 00:15:03]} {[%emt
00:00:06]} 5. Nf3 {[%clk 00:14:12]} Bg4 {[%clk 00:15:03]} {[%emt 00:00:38]} 6.
h3 {[%clk 00:13:58]} Bxf3 {[%clk 00:15:02]} {[%emt 00:00:10]} 7. Qxf3 {[%clk
00:13:58]} e6 {[%clk 00:15:01]} 8. Bb5 {[%emt 00:00:53]} Bxc5 {[%clk 00:14:52]}
9. O-O {[%clk 00:13:23]} Nge7 {[%clk 00:14:49]} {[%emt 00:00:26]} 10. Be3
{[%clk 00:10:44]} {[%emt 00:02:12]} Qb6 {[%clk 00:14:21]} {[%emt 00:00:31]} 11.
Bxc6+ {[%clk 00:08:53]} {[%emt 00:01:55]} Nxc6 {[%clk 00:13:58]} {[%emt
00:00:25]} 12. Qg3 {[%clk 00:08:43]} {[%emt 00:00:20]} Bxe3 {[%clk 00:13:26]}
{[%emt 00:00:27]} 13. Qxg7 {[%clk 00:08:11]} {[%emt 00:00:33]} O-O-O {[%clk
00:13:17]} {[%emt 00:00:34]} 14. fxe3 {[%clk 00:08:04]} {[%emt 00:00:03]} Qxe3+
{[%clk 00:13:16]} 15. Kh1 {[%clk 00:08:03]} Nxe5 {[%clk 00:12:34]} {[%emt
00:00:31]} 16. Nc3 {[%clk 00:07:33]} {[%emt 00:00:35]} Rhg8 {[%clk 00:12:24]}
{[%emt 00:00:08]} 17. Qf6 {[%clk 00:07:24]} {[%emt 00:00:17]} Rg6 {[%clk
00:11:33]} {[%emt 00:00:51]} 18. Qe7 {[%clk 00:07:05]} {[%emt 00:00:18]} Rh6
{[%clk 00:10:38]} {[%emt 00:00:56]} 19. Rxf7 {[%clk 00:04:26]} {[%emt
00:02:44]} Nxf7 {[%clk 00:09:14]} {[%emt 00:01:24]} 20. Qxf7 {[%clk 00:04:06]}
{[%emt 00:00:22]} a6 {[%clk 00:08:38]} {[%emt 00:00:37]} 21. Rf1 {[%clk
00:03:45]} {[%emt 00:00:49]} Rg6 {[%clk 00:08:26]} {[%emt 00:00:04]} 22. Rf3
{[%clk 00:02:45]} {[%emt 00:00:47]} Qe1+ {[%clk 00:08:22]} {[%emt 00:00:07]} 23.
Kh2 {[%clk 00:02:45]} Rdg8 {[%clk 00:07:54]} {[%emt 00:00:32]} 24. Rf2 {[%clk
00:02:21]} {[%emt 00:00:25]} Rg3 {[%clk 00:07:26]} {[%emt 00:00:30]} 25. Ne2
{[%clk 00:01:57]} {[%emt 00:00:39]} Rxg2+ {[%clk 00:04:26]} {[%emt 00:02:50]}
26. Rxg2 {[%clk 00:01:58]} {[%emt 00:00:04]} Rxg2+ {[%clk 00:04:26]} {[%emt
00:00:04]} 27. Kxg2 {[%clk 00:01:58]} Qxe2+ {[%clk 00:04:26]} 28. Kg3 {[%clk
00:01:45]} {[%emt 00:00:18]} Qe5+ {[%clk 00:04:26]} {[%emt 00:00:03]} 29. Kg4
{[%clk 00:01:38]} {[%emt 00:00:05]} Qe4+ {[%clk 00:04:17]} {[%emt 00:00:07]} 30.
Kh5 {[%clk 00:01:08]} {[%emt 00:00:32]} Kb8 {[%clk 00:01:57]} {[%emt 00:02:50]}
31. Kh6 {[%clk 00:01:00]} Qh4+ {[%clk 00:01:49]} 32. Kg7 {[%clk 00:00:57]}
{[%emt 00:00:04]} Qxh3 {[%clk 00:01:40]} {[%emt 00:00:05]} 33. Qf8+ {[%clk
00:00:58]} {[%emt 00:00:03]} Kc7 {[%clk 00:01:42]} 34. Qf7+ {[%clk 00:00:47]}
{[%emt 00:00:13]} Kb6 {[%clk 00:01:30]} {[%emt 00:00:11]} 35. Kf8 {[%clk
00:00:45]} {[%emt 00:00:24]} Qf5 {[%clk 00:01:30]} {[%emt 00:00:15]} 0-1

[Event "XVI Open Internacional Villa de Ibi"]
[Site "Ibi, Spain"]
[Date "2018.09.09"]
[Round "8.7"]
[White "Camarena Gimenez, Rufino"]
[Black "Sanleon Pravisano, Nieves"]
[Result "1-0"]
[TimeControl "15' + 2'' por jugada"]
[WhiteElo "2339"]
[BlackElo "1927"]

1. d4 {[%clk 00:14:54]} {[%emt 00:00:34]} d5 {[%clk 00:15:02]} {[%emt
00:00:04]} 2. c4 {[%clk 00:14:10]} {[%emt 00:00:30]} dxc4 {[%clk 00:15:01]} 3.
Nf3 {[%clk 00:13:56]} {[%emt 00:00:09]} Nf6 {[%clk 00:14:52]} {[%emt 00:00:12]}
4. e3 {[%clk 00:13:51]} {[%emt 00:00:24]} e6 {[%clk 00:14:35]} {[%emt
00:00:16]} 5. Bxc4 {[%clk 00:13:50]} c5 {[%clk 00:14:08]} {[%emt 00:00:27]} 6.
O-O {[%clk 00:13:41]} {[%emt 00:00:07]} a6 {[%clk 00:14:02]} {[%emt 00:00:04]}
7. a4 {[%clk 00:13:33]} {[%emt 00:00:11]} Nc6 {[%clk 00:14:00]} {[%emt
00:00:03]} 8. Nc3 {[%clk 00:13:30]} {[%emt 00:00:07]} Bd6 {[%clk 00:13:37]}
{[%emt 00:00:22]} 9. Qe2 {[%clk 00:13:22]} {[%emt 00:00:30]} Qe7 {[%clk
00:13:30]} 10. Rd1 {[%clk 00:13:15]} O-O {[%clk 00:12:49]} {[%emt 00:00:40]} 11.
h3 {[%clk 00:12:51]} {[%emt 00:00:27]} b6 {[%clk 00:11:27]} {[%emt 00:01:24]}
12. dxc5 {[%clk 00:12:12]} {[%emt 00:00:40]} Bxc5 {[%clk 00:11:03]} {[%emt
00:00:37]} 13. e4 {[%clk 00:12:07]} {[%emt 00:00:03]} h6 {[%clk 00:10:09]}
{[%emt 00:00:49]} 14. e5 {[%clk 00:11:52]} {[%emt 00:00:17]} Nd7 {[%clk
00:10:04]} {[%emt 00:00:37]} 15. Qe4 {[%clk 00:11:19]} {[%emt 00:00:05]} Bb7
{[%clk 00:09:20]} {[%emt 00:00:45]} 16. Bd3 {[%clk 00:10:32]} {[%emt 00:00:50]}
f5 {[%clk 00:09:17]} {[%emt 00:00:14]} 17. exf6 {[%clk 00:10:25]} {[%emt
00:00:04]} Nxf6 {[%clk 00:09:17]} {[%emt 00:00:04]} 18. Qh4 {[%clk 00:08:39]}
{[%emt 00:01:43]} Nb4 {[%clk 00:08:51]} {[%emt 00:00:48]} 19. Bg6 {[%clk
00:07:19]} {[%emt 00:01:02]} Nbd5 {[%clk 00:08:19]} {[%emt 00:00:33]} 20. Qg3
{[%clk 00:05:31]} {[%emt 00:01:48]} Nxc3 {[%clk 00:07:21]} {[%emt 00:01:01]} 21.
bxc3 {[%clk 00:05:30]} {[%emt 00:00:20]} Nd5 {[%clk 00:07:15]} 22. Bd2 {[%clk
00:04:36]} {[%emt 00:00:48]} Bd6 {[%clk 00:06:54]} {[%emt 00:00:23]} 23. Ne5
{[%clk 00:03:54]} {[%emt 00:00:46]} Qc7 {[%clk 00:05:29]} {[%emt 00:01:25]} 24.
f4 {[%clk 00:03:48]} {[%emt 00:00:36]} Bxe5 {[%clk 00:04:12]} {[%emt 00:00:55]}
25. fxe5 {[%clk 00:03:48]} {[%emt 00:00:07]} Ne7 {[%clk 00:04:07]} {[%emt
00:00:04]} 26. Rf1 {[%clk 00:02:07]} {[%emt 00:01:57]} Rad8 {[%clk 00:01:50]}
{[%emt 00:01:59]} 27. Rxf8+ {[%clk 00:01:13]} {[%emt 00:00:59]} Rxf8 {[%clk
00:01:50]} {[%emt 00:00:06]} 28. Re1 {[%clk 00:01:00]} {[%emt 00:00:33]} Kh8
{[%clk 00:01:33]} {[%emt 00:00:04]} 29. Bb1 {[%clk 00:00:57]} {[%emt 00:00:04]}
Nf5 {[%clk 00:01:23]} {[%emt 00:00:05]} 30. Qf2 {[%clk 00:00:51]} {[%emt
00:00:08]} Qc5 {[%clk 00:01:03]} {[%emt 00:00:30]} 31. Qxc5 {[%clk 00:00:43]}
{[%emt 00:00:03]} bxc5 {[%clk 00:01:04]} {[%emt 00:00:04]} 32. Rf1 {[%clk
00:00:39]} {[%emt 00:00:15]} Kg8 {[%clk 00:00:51]} {[%emt 00:00:04]} 33. Be1
{[%clk 00:00:30]} {[%emt 00:00:06]} Ne3 {[%clk 00:00:34]} {[%emt 00:00:20]} 34.
Bh7+ {[%clk 00:00:29]} {[%emt 00:00:05]} Kxh7 {[%clk 00:00:32]} {[%emt
00:00:04]} 35. Rxf8 {[%clk 00:00:30]} {[%emt 00:00:03]} Bc6 {[%clk 00:00:29]}
{[%emt 00:00:04]} 36. a5 {[%clk 00:00:26]} {[%emt 00:00:07]} Nd5 {[%clk
00:00:29]} {[%emt 00:00:18]} 37. c4 {[%clk 00:00:25]} Ne3 {[%clk 00:00:27]}
{[%emt 00:00:03]} 38. Rc8 {[%clk 00:00:24]} Bxg2 {[%clk 00:00:24]} 39. Bf2
{[%clk 00:00:22]} Bb7 {[%clk 00:00:25]} 40. Rc7 {[%clk 00:00:23]} {[%emt
00:00:20]} 1-0